Workbook

Sheet паспорт
A1: ПАТ "УКРТРАНСГАЗ" | G1: ПАСПОРТ ФІЗИКО-ХІМІЧНИХ ПОКАЗНИКІВ ПРИРОДНОГО ГАЗУ № 23
A2: Філія "УМГ "КИЇВТРАНСГАЗ" | G2: переданого Боярським ЛВУМГ та прийнятого ПАТ "Київоблгаз"
A3: Боярське ЛВУМГ | G3: Маршрут №23
A4: Вимірювальна хіміко-аналітична лабораторія
A5: Свідоцтво № 70А-43-14 чинно до 23.07.2019 р. | K5: по газопроводу "ХОТІВ - БОЯРКА" | V5: за період з | X5: 2017-03-01 | Z5: по | AA5: 2017-03-31
A7: Число місяця | B7: Компонентний склад, % мол. | N7: Фізико-хімічні показники газу обчислені на основі компонентного складу, 101,325 кПа | X7: Температура точки роси за вологою (Р = 3.92 МПа), ºС | Y7: Температура точки роси за вуглеводнями, ºС | Z7: Вміст сірководню, г/м3 | AA7: Вміст меркаптанової сірки, г/м3 | AB7: Вміст механічних домішок, г/м3
N8: Густина абсолютна, кг/м3,при 20 ºС, | O8: Температура вимірювання/згоряння при 20/25°С
B9: метан, С1 | C9: етан, С2 | D9: пропан, С3 | E9: ізо-бутан, і-С4 | F9: н-бутан, н-С4 | G9: нео-пентан, нео-С5 | H9: ізо-пентан, і-С5 | I9: н-пентан, н-С5 | J9: гексани та вищі, С6+ | K9: кисень, О2 | L9: азот, N2 | M9: діоксид вуглецю, CО2 | O9: Теплота згоряння нижча | R9: Теплота згоряння вища | U9: Число Воббе вище
O10: ккал/м3 | P10: МДж/м3 | Q10: кВт⋅год/м3 | R10: ккал/м3 | S10: МДж/м3 | T10: кВт⋅год/м3 | U10: ккал/м3 | V10: МДж/м3 | W10: кВт⋅год/м3
A11: 1 | O11: =P11*238.8459 -> 8194.802829 | P11: 34.31 | Q11: =P11/3.6 -> 9.530555556 | R11: =S11*238.8459 -> 9076.1442 | S11: 38 | T11: =S11/3.6 -> 10.55555556 | AC11: =SUM(B11:M11)+$K$42+$N$42 -> 0
A12: 2 | O12: =P12*238.8459 -> 8194.802829 | P12: 34.31 | Q12: =P12/3.6 -> 9.530555556 | R12: =S12*238.8459 -> 9076.1442 | S12: 38 | T12: 10.55555556 | AC12: 0
A13: 3 | O13: =P13*238.8459 -> 8194.802829 | P13: 34.31 | Q13: =P13/3.6 -> 9.530555556 | R13: 9076.1442 | S13: 38 | T13: 10.55555556 | AC13: 0 | AD13: =IF(AC13=100,"ОК"," ") -> 
A14: 4 | O14: 8194.802829 | P14: 34.31 | Q14: 9.530555556 | R14: 9076.1442 | S14: 38 | T14: 10.55555556 | AC14: 0 | AD14: =IF(AC14=100,"ОК"," ") -> 
A15: 5 | O15: 8194.802829 | P15: 34.31 | Q15: 9.530555556 | R15: 9076.1442 | S15: 38 | T15: 10.55555556 | AC15: 0
A16: 6 | B16: 89.6147 | C16: 4.9918 | D16: 1.0689 | E16: 0.1116 | F16: 0.174 | G16: 0.0035 | H16: 0.0464 | I16: 0.04 | J16: 0.0814 | K16: 0.0051 | L16: 1.6393 | M16: 2.2233 | N16: 0.7537 | O16: 8221.075878 | P16: 34.42 | Q16: 9.561111111 | R16: 9107.194167 | S16: 38.13 | T16: 10.59166667 | U16: =V16*238.8459 -> 11512.37238 | V16: 48.2 | W16: =V16/3.6 -> 13.38888889 | X16: -13 | Y16: -12.3 | AC16: 100 | AD16: ОК
A17: 7 | O17: 8221.075878 | P17: 34.42 | Q17: 9.561111111 | R17: 9107.194167 | S17: 38.13 | T17: 10.59166667 | AC17: 0
A18: 8 | O18: 8221.075878 | P18: 34.42 | Q18: 9.561111111 | R18: 9107.194167 | S18: 38.13 | T18: 10.59166667 | AC18: 0
A19: 9 | O19: 8221.075878 | P19: 34.42 | Q19: 9.561111111 | R19: 9107.194167 | S19: 38.13 | T19: 10.59166667 | AC19: 0
A20: 10 | O20: 8221.075878 | P20: 34.42 | Q20: 9.561111111 | R20: 9107.194167 | S20: 38.13 | T20: 10.59166667 | AC20: 0
A21: 11 | O21: 8221.075878 | P21: 34.42 | Q21: 9.561111111 | R21: 9107.194167 | S21: 38.13 | T21: 10.59166667 | AC21: 0
A22: 12 | O22: 8221.075878 | P22: 34.42 | Q22: 9.561111111 | R22: 9107.194167 | S22: 38.13 | T22: 10.59166667 | AC22: 0
A23: 13 | B23: 89.5688 | C23: 5.065 | D23: 1.0691 | E23: 0.1102 | F23: 0.1674 | G23: 0.0036 | H23: 0.0433 | I23: 0.0354 | J23: 0.0636 | K23: 0.0087 | L23: 1.7473 | M23: 2.1175 | N23: 0.7526 | O23: 8216.29896 | P23: 34.4 | Q23: 9.555555556 | R23: 9100.02879 | S23: 38.1 | T23: 10.58333333 | U23: =V23*238.8459 -> 11512.37238 | V23: 48.2 | W23: =V23/3.6 -> 13.38888889 | AC23: 99.9999
A24: 14 | O24: 8216.29896 | P24: 34.4 | Q24: 9.555555556 | R24: 9100.02879 | S24: 38.1 | T24: 10.58333333 | AC24: 0
A25: 15 | O25: 8216.29896 | P25: 34.4 | Q25: 9.555555556 | R25: 9100.02879 | S25: 38.1 | T25: 10.58333333 | AC25: 0
A26: 16 | O26: 8216.29896 | P26: 34.4 | Q26: 9.555555556 | R26: 9100.02879 | S26: 38.1 | T26: 10.58333333 | AC26: 0
A27: 17 | O27: 8216.29896 | P27: 34.4 | Q27: 9.555555556 | R27: 9100.02879 | S27: 38.1 | T27: 10.58333333 | AC27: 0
A28: 18 | O28: 8216.29896 | P28: 34.4 | Q28: 9.555555556 | R28: 9100.02879 | S28: 38.1 | T28: 10.58333333 | AC28: 0
A29: 19 | O29: 8216.29896 | P29: 34.4 | Q29: 9.555555556 | R29: 9100.02879 | S29: 38.1 | T29: 10.58333333 | AC29: 0
A30: 20 | B30: 89.5198 | C30: 5.0459 | D30: 1.0817 | E30: 0.1116 | F30: 0.1721 | G30: 0.0038 | H30: 0.0457 | I30: 0.0379 | J30: 0.0773 | K30: 0.0088 | L30: 1.7197 | M30: 2.1758 | N30: 0.7538 | O30: 8221.075878 | P30: 34.42 | Q30: 9.561111111 | R30: 9104.805708 | S30: 38.12 | T30: 10.58888889 | U30: =V30*238.8459 -> 11509.98392 | V30: 48.19 | W30: =V30/3.6 -> 13.38611111 | X30: -13 | Y30: -12.1 | AC30: 100.0001 | AD30: =IF(AC30=100,"ОК"," ") -> 
A31: 21 | O31: =P31*238.8459 -> 8221.075878 | P31: 34.42 | Q31: =P31/3.6 -> 9.561111111 | R31: =S31*238.8459 -> 9104.805708 | S31: 38.12 | T31: =S31/3.6 -> 10.58888889 | AC31: 0
A32: 22 | O32: 8221.075878 | P32: 34.42 | Q32: 9.561111111 | R32: 9104.805708 | S32: 38.12 | T32: 10.58888889 | AC32: 0
A33: 23 | O33: 8221.075878 | P33: 34.42 | Q33: =P33/3.6 -> 9.561111111 | R33: 9104.805708 | S33: 38.12 | T33: =S33/3.6 -> 10.58888889 | AC33: 0 | AD33: =IF(AC33=100,"ОК"," ") -> 
A34: 24 | O34: 8221.075878 | P34: 34.42 | Q34: 9.561111111 | R34: 9104.805708 | S34: 38.12 | T34: 10.58888889 | AC34: 0
A35: 25 | O35: 8221.075878 | P35: 34.42 | Q35: 9.561111111 | R35: 9104.805708 | S35: 38.12 | T35: 10.58888889 | AC35: 0
A36: 26 | O36: 8221.075878 | P36: 34.42 | Q36: 9.561111111 | R36: 9104.805708 | S36: 38.12 | T36: =S36/3.6 -> 10.58888889 | AC36: 0
A37: 27 | B37: 89.6981 | C37: 4.9601 | D37: 1.0426 | E37: 0.113 | F37: 0.1737 | G37: 0.0039 | H37: 0.0469 | I37: 0.0389 | J37: 0.0792 | K37: 0.0131 | L37: 1.7426 | M37: 2.0879 | N37: 0.7522 | O37: 8218.687419 | P37: 34.41 | Q37: 9.558333333 | R37: 9102.417249 | S37: 38.11 | T37: 10.58611111 | U37: =V37*238.8459 -> 11517.1493 | V37: 48.22 | W37: =V37/3.6 -> 13.39444444 | Z37: 0.006 | AA37: 0.02 | AB37: відсут | AC37: 100 | AD37: ОК
A38: 28 | O38: 8218.687419 | P38: 34.41 | Q38: 9.558333333 | R38: 9102.417249 | S38: 38.11 | T38: 10.58611111 | AC38: 0
A39: 29 | O39: 8218.687419 | P39: 34.41 | Q39: 9.558333333 | R39: 9102.417249 | S39: 38.11 | T39: 10.58611111 | AC39: 0
A40: 30 | O40: 8218.687419 | P40: 34.41 | Q40: 9.558333333 | R40: 9102.417249 | S40: 38.11 | T40: 10.58611111 | AC40: 0
A41: 31 | O41: 8218.687419 | P41: 34.41 | Q41: 9.558333333 | R41: 9102.417249 | S41: 38.11 | T41: 10.58611111 | AC41: 0
A42: Рівень одоризації відповідає чинним нормативним документам | O42: =SUMPRODUCT(O11:O41,' розрахунок'!D7:D37)/' розрахунок'!D38 -> 8215.206315 | P42: =SUMPRODUCT(P11:P41,' розрахунок'!D7:D37)/' розрахунок'!D38 -> 34.39542531 | Q42: =SUMPRODUCT(Q11:Q41,' розрахунок'!D7:D37)/' розрахунок'!D38 -> 9.554284809 | R42: =SUMPRODUCT(R11:R41,' розрахунок'!D7:D37)/' розрахунок'!D38 -> 9099.041968 | S42: =SUMPRODUCT(S11:S41,' розрахунок'!D7:D37)/' розрахунок'!D38 -> 38.09586837 | T42: =SUMPRODUCT(T11:T41,' розрахунок'!D7:D37)/' розрахунок'!D38 -> 10.58218566
H43: Середньозважене значення теплоти згоряння:
B46: Головний інженер Боярського ЛВУМГ Табак С.М. 03.04.2017 р.
C47: Підрозділу підприємства, якому підпорядкована лабораторія | O47: прізвище | R47: підпис | V47: дата
B48: Завідувач вимірювальної хіміко-аналітичної лабораторії Клименко І.А. 03.04.2017 р.
C49: Лабораторія, де здійснювалось вимірювання газу | O49: прізвище | R49: підпис | V49: дата
B50: Начальник служби газовимірювань та метрології Прима Ю.І. 03.04.2017 р.
C51: Підрозділу, відповідального за облік газу за маршрутом | O51: прізвище | R51: підпис | V51: дата

Sheet розрахунок (hidden)
A2: Додаток до Паспорту фізико-хімічних показників природного газу по маршруту № 23
A4: Число місяця | B4: Теплота згоряння вища, МДж/м3 | C4: Київська область | D4: Загальний обсяг газу, м3
C5: Обсяг газу переданого за добу, м3
C6: ГРС-1А
A7: 1 | B7: 38 | C7: 257.508 | D7: =SUM(C7:C7) -> 257.508
A8: 2 | B8: 38 | C8: 250.982 | D8: 250.982
A9: 3 | B9: 38 | C9: 253.237 | D9: 253.237
A10: 4 | B10: 38 | C10: 250.177 | D10: 250.177
A11: 5 | B11: 38 | C11: 250.38 | D11: 250.38
A12: 6 | B12: 38.13 | C12: 234.69 | D12: 234.69
A13: 7 | B13: 38.13 | C13: 230.266 | D13: 230.266
A14: 8 | B14: 38.13 | C14: 235.554 | D14: 235.554
A15: 9 | B15: 38.13 | C15: 236.534 | D15: 236.534
A16: 10 | B16: 38.13 | C16: 212.048 | D16: 212.048
A17: 11 | B17: 38.13 | C17: 220.609 | D17: 220.609
A18: 12 | B18: 38.13 | C18: 236.109 | D18: 236.109
A19: 13 | B19: 38.1 | C19: 239.239 | D19: 239.239
A20: 14 | B20: 38.1 | C20: 286.031 | D20: 286.031
A21: 15 | B21: 38.1 | C21: 386.772 | D21: 386.772
A22: 16 | B22: 38.1 | C22: 273.937 | D22: 273.937
A23: 17 | B23: 38.1 | C23: 262.11 | D23: 262.11
A24: 18 | B24: 38.1 | C24: 282.831 | D24: 282.831
A25: 19 | B25: 38.1 | C25: 287.53 | D25: 287.53
A26: 20 | B26: 38.12 | C26: 267.901 | D26: 267.901 | F26: 38.09548815
A27: 21 | B27: 38.12 | C27: 247.096 | D27: 247.096 | F27: 9098.951154
A28: 22 | B28: 38.12 | C28: 225.994 | D28: 225.994 | F28: 10.58208004
A29: 23 | B29: 38.12 | C29: 234.7 | D29: 234.7
A30: 24 | B30: 38.12 | C30: 246.521 | D30: 246.521
A31: 25 | B31: 38.12 | C31: 247.551 | D31: 247.551
A32: 26 | B32: 38.12 | C32: 265.222 | D32: 265.222
A33: 27 | B33: 38.11 | C33: 255.003 | D33: 255.003
A34: 28 | B34: 38.11 | C34: 236.799 | D34: 236.799
A35: 29 | B35: 38.11 | C35: 206.537 | D35: 206.537
A36: 30 | B36: 38.11 | C36: 230.494 | D36: 230.494
A37: 31 | B37: 38.11 | C37: 203.146 | D37: 203.146
A38: Загальний обсяг газу, м3 | C38: =SUM(C7:C37) -> 7753.508 | D38: =SUM(D7:D37) -> 7753.508
A39: Енергія, МДж | C39: =SUMPRODUCT($B$7:$B$37,C7:C37) -> 295376.6202 | D39: =SUMPRODUCT(B7:B37,D7:D37) -> 295376.6202
A40: Теплота згоряння (середньозважене значення за місяць), МДж/м³ | C40: =C39/C38 -> 38.09586837 | D40: =D39/D38 -> 38.09586837
A41: Теплота згоряння (середньозважене значення за місяць), ккал/м³ | C41: =C40*238.8459 -> 9099.041968 | D41: =D40*238.8459 -> 9099.041968
A42: Теплота згоряння (середньозважене значення за місяць), кВт*год./м³ | C42: =C40/3.6 -> 10.58218566 | D42: =D40/3.6 -> 10.58218566

Sheet додаток
A2: Додаток до Паспорту фізико-хімічних показників природного газу №23
A4: Область | B4: ГРС, прямий споживач | C4: Cередньозважене значення вищої теплоти згоряння
C5: МДж/м³ | D5: ккал/м³ | E5: кВт*год./м³
A6: Київська область | B6: ГРС - 1А | C6: 38.09548815 | D6: 9098.951154 | E6: 10.58208004
A7: Середньозважене значення вищої теплоти згоряння по маршруту № 23 | C7: 38.09548815 | D7: 9098.951154 | E7: 10.58208004
A19: Головний інженер Боярського ЛВУМГ Табак С.М. 03.04.2017 р.
A20: Підрозділу підприємства, якому підпорядкована лабораторія | D20: прізвище | E20: підпис | F20: дата
A21: Завідувач вимірювальної хіміко-аналітичної лабораторії Клименко І.А. 03.04.2017 р.
A22: Лабораторія, де здійснювалось вимірювання газу | D22: прізвище | E22: підпис | F22: дата
A23: Начальник служби газовимірювань та метрології Прима Ю.І. 03.04.2017 р.
A24: Підрозділу, відповідального за облік газу за маршрутом | D24: прізвище | E24: підпис | F24: дата

Sheet variablesList (hidden)
A1: 3 | B1: x:\gaysin | C1: 10, 11, 24, 25, 127, 128, 132, 180, 207, 215 | D1: x:\
B2: x:\Illinci
B3: x:\Talne

Sheet Лист1 (hidden)
